Cogmind - Beta 14 @@@ ROGUE MODE // 2024.10.18 @ 05:08:45 Player: KURIIRI Result: Destroyed by H-66 Slayer with Gauss Rifle Performance ------------- Evolutions (4) 2000 Regions Visited (13) 2600 Robots Destroyed (254) 1270 Value Destroyed (12030) 12030 Prototype IDs (46) 920 Alien Tech Used (0) 0 Bonus (4619) 4619 TOTAL SCORE: 23439 Bonus ------- High Alert Combat Kills 3210 Follower Combat Kills 726 Entered Garrisons 600 Aligned with FarCom 300 Friendly Fire -217 Cogmind --------- Core Integrity 0/850 Matter 131/300 Energy 170/170 System Corruption 7% Temperature Cool (0) Movement Hovering (156) Ox2 Location -6/Factory Parts ------- > --- POWER (1) -------- Light Antimatter Reactor > --- PROPULSION (5) --- Gravmag System Improved Gravmag System Improved Gravmag System > --- UTILITY (6) ------ Large Storage Unit Core Analyzer Improved Hacking Suite > --- WEAPON (3) ------- Chainsword Great Axe Great Axe > --- INVENTORY (15) --- Improved Gravmag System Microactuators Experimental Reaction Control System Variable Charge Gun Heavy Mass Driver Long-range Missile Launcher Power Maul Peak State ------------ > --- POWER ------------ Light Antimatter Reactor > --- PROPULSION ------- Improved Heavy Treads Armored Heavy Treads Armored Wheel > --- UTILITY ---------- Large Storage Unit Advanced Melee Analysis Suite Core Analyzer Improved Heavy Armor Plating Improved Hacking Suite > --- WEAPON ----------- Heavy Mass Driver Chainsword > --- INVENTORY -------- Gravmag System Improved Gravmag System Improved Gravmag System Improved Gravmag System Microactuators Experimental Reaction Control System Improved Light Armor Plating Variable Charge Gun Heavy Mass Driver Long-range Missile Launcher Power Maul Great Axe Great Axe [Rating: 87] Favorites ----------- Power Light Fission Core Engine Light Ion Engine Power Core Light Fission Core Reactor Light Antimatter Reactor Propulsion Armored Wheel Treads Light Treads Leg Carbon-fiber Leg Wheel Armored Wheel Hover Unit Gravmag System Utility Large Storage Unit Device Coolant Injector Storage Large Storage Unit Processor Core Analyzer Hackware Improved Hacking Suite Protection Improved Power Shielding Weapon Lightning Gun Energy Gun Lightning Gun Energy Cannon Advanced Beam Cannon Ballistic Gun Assault Rifle Ballistic Cannon Heavy Mass Driver Launcher Grenade Launcher Impact Weapon Power Maul Slashing Weapon Great Axe Build | -11 -10 -10 -10 -9 -8 -8 -8 -8 -8 -7 -6 -6 -6 ------- Run | Yrd Mat Min Exi Min Mat Gar Mat Gar Mat Fac Fac Gar Fac Slots Evolved 8 | . . . . . 4 . . . . 2 2 . . Power . | . . . . . . . . . . . . . . Propulsion 3 | . . . . . 2 . . . . . 1 . . Utility 4 | . . . . . 1 . . . . 2 1 . . Weapon 1 | . . . . . 1 . . . . . . . . Parts Attached 307 | 6 14 4 2 . 36 16 10 28 22 29 66 58 16 Power 26 | 1 2 . . . 5 1 1 3 2 2 5 3 1 Engine 12 | 1 2 . . . 3 . 1 2 1 . 2 . . Core 13 | . . . . . 2 1 . 1 1 2 3 3 . Reactor 1 | . . . . . . . . . . . . . 1 Propulsion 100 | 2 3 . . . 8 5 7 9 2 11 29 16 8 Treads 25 | 2 3 . . . . . . 2 2 . 7 7 2 Leg 2 | . . . . . . 2 . . . . . . . Wheel 14 | . . . . . . . . 7 . . 1 5 1 Hover 59 | . . . . . 8 3 7 . . 11 21 4 5 Flight . | . . . . . . . . . . . . . . Utility 51 | 1 3 1 . . 2 2 . 4 4 8 12 12 2 Device 20 | . . . . . . . . 2 1 3 6 7 1 Storage 6 | 1 1 . . . . 1 . . 1 1 . 1 . Processor 6 | . 2 1 . . 1 . . . . 1 1 . . Hackware 6 | . . . . . 1 . . . . 2 3 . . Protection 13 | . . . . . . 1 . 2 2 1 2 4 1 Artifact . | . . . . . . . . . . . . . . Weapon 130 | 2 6 3 2 . 21 8 2 12 14 8 20 27 5 Energy Gun 25 | 1 2 1 . . 13 3 . 3 2 . . . . Energy Cannon 16 | . . . . . . . . 3 5 2 3 3 . Ballistic Gun 22 | 1 3 1 . . . . 2 5 4 2 . 4 . Ballistic Cannon 9 | . . . . . . . . . . . . 8 1 Launcher 16 | . . 1 1 . 1 2 . . . . 3 7 1 Special Weapon . | . . . . . . . . . . . . . . Impact Weapon 3 | . . . . . . . . . . 1 1 1 . Slashing Weapon 39 | . 1 . 1 . 7 3 . 1 3 3 13 4 3 Piercing Weapon . | . . . . . . . . . . . . . . Special Melee Weapon . | . . . . . . . . . . . . . . Unidentified Prototypes 11 | . . . . . 2 . . . 3 1 3 2 . Parts Lost 52 | . 1 2 . . 1 6 3 7 2 13 10 3 4 Power 5 | . . . . . . 1 1 2 . 1 . . . Propulsion 21 | . . . . . . 1 1 1 1 7 7 2 1 Utility 12 | . . . . . . . 1 2 1 4 1 1 2 Weapon 14 | . 1 2 . . 1 4 . 2 . 1 2 . 1 Highest Loss Streak 6 | . 1 1 . . 1 3 2 1 2 6 4 1 4 To Critical Strikes 1 | . . . . . . . . . . . . . 1 Average Slot Usage (%) 88 | . 98 97 98 100 98 91 84 95 98 84 82 77 83 Engine 4 | . 14 14 14 14 7 . 5 6 4 . 2 . . Core 3 | . . . . . 1 8 1 . 4 6 1 6 3 Treads 9 | . 27 28 28 28 . . . 8 11 2 3 9 7 Wheel 5 | . . . . . . . . 26 23 2 1 4 5 Hover 13 | . . . . . 35 30 29 . . 23 22 4 10 Device 4 | . . . . . . . . 6 8 8 4 8 2 Storage 7 | . 14 14 14 14 9 2 9 9 9 6 6 1 6 Processor 8 | . 13 14 14 14 9 9 9 1 . . 6 13 12 Hackware 6 | . . . . . 8 9 2 . . 10 10 9 6 Protection 4 | . . . . . . 6 . 8 8 4 5 2 7 Energy Gun 5 | . 6 15 14 14 24 7 . 8 3 . . . . Energy Cannon 2 | . . . . . . . . 8 14 3 . 3 . Ballistic Gun 4 | . 20 7 . . . . 8 8 8 1 . 1 . Impact Weapon 1 | . . . . . . . . . . 5 2 . 2 Slashing Weapon 4 | . . . . . 1 12 18 1 . 3 10 2 8 Peak Build Rating 87 | 6 11 10 11 11 47 47 46 35 37 56 69 85 87 Average Rating 45 | 4 8 9 10 11 42 40 38 28 34 44 57 75 76 On Entrance 28 | . 6 10 8 11 11 47 43 37 31 37 24 65 68 Naked Turns 2 | . . . . . . . . . . 2 . . . Heaviest Build 70 | 14 29 29 28 28 37 36 34 46 45 45 52 62 70 Greatest Support 150 | 40 40 40 40 40 40 38 38 36 36 41 56 150 135 Greatest Overweight (x) 5 | . . . . . 1 . 2 1 3 2 4 5 5 Average Overweight (x) . | . . . . . . . . 1 1 . . 1 3 Largest Inventory Capacity 15 | 8 15 15 15 15 15 15 15 15 15 15 15 15 15 Average Capacity 12 | 6 14 15 15 15 15 7 15 15 15 14 15 6 15 Most Carried 15 | 1 15 14 15 15 15 15 15 15 15 15 15 15 15 Average Carried 11 | . 9 13 14 15 14 6 14 14 14 10 14 6 14 Final Capacity 15 | 8 15 15 15 15 15 15 15 15 15 15 15 15 15 Final Carried 15 | 1 13 14 15 15 15 14 15 15 15 13 14 15 8 Class Distribution -------------------- 27% | Mutant 15% | Scavenger-Skirmisher 14% | Skirmisher 12% | Scavenger-Mutant 11% | Hacker-Gladiator 9% | Hacker-Mutant 5% | Hacker-Skirmisher 4% | Gladiator Dominant Class ---------------- Mutant | -10/Materials Mutant | -10/Mines Mutant | -10/Exiles Mutant | -9/Mines Skirmisher | -8/Materials Scavenger-Mutant | -8/Garrison Mutant | -8/Materials Scavenger-Skirmisher | -8/Garrison Skirmisher | -8/Materials Hacker-Mutant | -7/Factory Hacker-Gladiator | -6/Factory Hacker-Skirmisher | -6/Garrison Mutant | -6/Factory Resources | -11 -10 -10 -10 -9 -8 -8 -8 -8 -8 -7 -6 -6 -6 ----------- Run | Yrd Mat Min Exi Min Mat Gar Mat Gar Mat Fac Fac Gar Fac Matter Collected 6956 | 198 555 106 . 56 414 195 30 512 416 214 1176 2482 602 Remotely . | . . . . . . . . . . . . . . Salvage Created 10730 | . 754 100 . 144 1287 726 121 1388 1113 491 1245 2461 900 Parts 560 | . 54 5 . 10 68 41 15 63 71 19 78 99 37 Haulers Intercepted 11 | . 2 . . . 4 . . . 5 . . . . Recyclers Shooed 5 | . 1 . . . . . . . . . 3 . 1 Parts Field Recycled . | . . . . . . . . . . . . . . Retrieved Matter . | . . . . . . . . . . . . . . Parts Self-Destructed . | . . . . . . . . . . . . . . Prevented . | . . . . . . . . . . . . . . Kills | -11 -10 -10 -10 -9 -8 -8 -8 -8 -8 -7 -6 -6 -6 ------- Run | Yrd Mat Min Exi Min Mat Gar Mat Gar Mat Fac Fac Gar Fac Combat Hostiles Destroyed 187 | . 13 5 . 8 13 19 1 27 14 9 18 39 21 Melee 25 | . . . . . 1 8 1 . . 3 10 1 1 Guns 53 | . 13 3 . . 8 5 . 12 9 2 . 1 . Cannons 62 | . . . . . . . . 12 3 2 . 28 17 AOE 29 | . . 2 . 8 . 4 . . . . 4 8 3 Classes Destroyed 21 | . 5 2 . 1 4 . . 1 1 . 1 4 2 Worker 14 | . . . . . 3 . 1 . 1 . 8 . 1 Builder 12 | . 1 . . . 1 . 3 . 3 . 3 . 1 Tunneler 4 | . . 1 . . 2 . . . . . 1 . . Hauler 11 | . 2 . . . 4 . . . 5 . . . . Recycler 3 | . . . . . . . . . . . 3 . . Mechanic 1 | . . . . . . . . . . . . . 1 Operator 3 | . 1 . . . 1 . . . . 1 . . . Watcher 18 | . 3 . . . 5 . . . 4 2 4 . . Swarmer 29 | . . . . 3 . 7 . 7 . . 9 3 . Saboteur 2 | . . . . . . . . . . . . 1 1 Grunt 86 | . 13 4 . 5 6 7 1 5 10 3 1 16 15 Brawler 5 | . . . . . 1 . . 1 . . . 2 1 Duelist 3 | . . . . . . . . . 2 . . . 1 Protector 1 | . . . . . . . . . . . . . 1 Sentry 29 | . . . . . 3 4 . 10 1 2 1 7 1 Demolisher 1 | . . 1 . . . . . . . . . . . Specialist 1 | . . . . . . . . . . . . 1 . Hunter 15 | . . . . . 3 1 . 1 1 1 2 5 1 Programmer 13 | . . . . . . . . 3 . 3 5 2 . Behemoth 1 | . . . . . . . . . . . . 1 . Striker 2 | . . . . . . . . . . . . 2 . Best Kill Streak 13 | . 2 3 . 6 3 7 2 7 3 2 5 4 13 Combat Bots Only 11 | . 2 2 . 6 2 7 1 7 3 2 4 4 11 Max Kills in Single Turn 4 | . 1 1 . 2 1 3 1 1 2 1 4 2 2 Gunslinging . | . . . . . . . . . . . . . . Exploded 4 | . . 1 . 2 . 3 . . . . 4 2 2 Melee 1 | . . . . . 1 1 1 . . 1 1 1 1 Uniques/NPCs Destroyed . | . . . . . . . . . . . . . . Combat | -11 -10 -10 -10 -9 -8 -8 -8 -8 -8 -7 -6 -6 -6 -------- Run | Yrd Mat Min Exi Min Mat Gar Mat Gar Mat Fac Fac Gar Fac Hostile Shots Fired 1167 | . 81 26 . 11 36 77 8 117 35 219 124 286 147 Missed 335 | . 30 8 . 4 11 30 1 29 14 76 29 78 25 Damage Taken 12056 | . 647 353 . 101 414 535 219 1182 402 1805 1356 2718 2324 Core 1724 | . 106 16 . 22 73 72 20 72 12 468 233 344 286 Absorbed by Shields 5 | . . . . . . . . 5 . . . . . Reduced by Siege Mode 506 | . . . . . . . . . . . . 295 211 Redirected to Shielding 58 | . . . . . . . . . . . 58 . . Ignored by Resistances 140 | . . . . . . . . . . . . 140 . Regen/Repaired (Parts) 490 | . 212 . . . 21 . . . 119 . 100 . 38 Core Remaining (%) 57 | 100 . . . 42 . . . . 54 33 . . . Volleys Fired 604 | . 89 20 . 9 53 25 . 127 65 20 4 143 49 Largest 3 | . 2 2 . 1 3 3 . 3 3 3 1 3 1 Hottest 225 | . 85 115 . 30 165 165 . 225 161 161 43 148 75 Shots Fired 1106 | . 160 33 . 9 130 53 . 237 177 37 4 219 47 Gun 611 | . 160 28 . . 128 50 . 116 80 15 . 34 . Cannon 448 | . . . . . . . . 121 97 22 2 162 44 Launcher 47 | . . 5 . 9 2 3 . . . . 2 23 3 Special . | . . . . . . . . . . . . . . Kinetic 453 | . 131 11 . . . . . 57 59 15 . 136 44 Thermal 415 | . 16 17 . . . . . 180 118 22 2 60 . Explosive 47 | . . 5 . 9 2 3 . . . . 2 23 3 Electromagnetic 191 | . 13 . . . 128 50 . . . . . . . Robot Hit Streak 33 | . 9 15 . . 11 14 . 27 18 6 4 33 13 Robot Miss Streak 5 | . 3 3 . . 3 2 . 5 5 3 . 3 2 Penetration Max 1 | . . . . . . . . . . . . . 1 Secondary Targets 3 | . 1 . . . 1 1 . . . . . . . Max Gunslinging Chain 1 | . 1 . . . 1 1 . . . . . . . Shots Hit Robots 832 | . 111 24 . . 87 51 8 130 98 48 65 170 40 Core Hits 388 | . 41 12 . 14 33 27 4 47 43 21 30 89 27 Critical Kills 6 | . . . . . . . . 1 2 . 1 2 . Critical Parts Destroyed 10 | . . . . . . . . . . 2 2 6 . Critical Strikes 58 | . 2 . . . 3 . 1 10 4 3 7 21 7 Burn 10 | . 1 . . . . . . 7 2 . . . . Meltdown 4 | . . . . . . . . 1 2 . . 1 . Destroy 8 | . . . . . . . . . . . . 8 . Blast 14 | . . . . . . . . . . . . 9 5 Corrupt 4 | . 1 . . . 3 . . . . . . . . Smash 5 | . . . . . . . . . . 2 3 . . Sever 13 | . . . . . . . 1 2 . 1 4 3 2 Melee Attacks 356 | . 6 . . . 21 63 19 20 4 52 122 35 14 Impact 64 | . . . . . . . . . . 33 31 . . Slashing 292 | . 6 . . . 21 63 19 20 4 19 91 35 14 Piercing . | . . . . . . . . . . . . . . Sneak Attacks 34 | . 2 . . . 4 1 4 . . . 22 . 1 Combat Hostiles 3 | . . . . . . 1 . . . . 2 . . Follow-up Attacks 13 | . . . . . . . . . . 3 7 2 1 Damage Inflicted 29726 | . 1569 567 . 523 2487 1722 516 2913 1922 1470 4161 8954 2922 Guns 6569 | . 1447 302 . . 1854 650 . 1172 738 230 . 176 . Cannons 9221 | . . . . . . . . 990 1171 305 . 4682 2073 Explosions 4139 | . . 229 . 523 83 359 . . . . 349 1911 685 Melee 9715 | . 91 . . . 550 713 516 751 . 933 3812 2185 164 Ramming 82 | . 31 36 . . . . . . 13 2 . . . Kinetic 8648 | . 1147 139 . . . . . 559 561 230 . 3939 2073 Thermal 4576 | . 203 163 . . 35 . . 1603 1348 305 . 919 . Explosive 4104 | . . 229 . 523 48 359 . . . . 349 1911 685 Electromagnetic 2601 | . 97 . . . 1854 650 . . . . . . . Impact 1488 | . . . . . . . . . . 564 924 . . Slashing 8227 | . 91 . . . 550 713 516 751 . 369 2888 2185 164 Piercing . | . . . . . . . . . . . . . . Highest Corruption 7 | . . . . . . . . . . 3 4 5 7 Average Corruption 3 | . . . . . . . . . . 1 2 4 5 Corruption Purged 4 | . . . . . . . . . . 4 . . . Corruption Blocked . | . . . . . . . . . . . . . . Effects 149 | . . . . . . . . . . 11 32 83 23 Message Errors 34 | . . . . . . . . . . 2 8 21 3 Matter Fused 28 | . . . . . . . . . . . 11 13 4 Heat Flow Errors 18 | . . . . . . . . . . 2 1 13 2 Energy Discharges 18 | . . . . . . . . . . 3 1 8 6 Parts Rejected 2 | . . . . . . . . . . . . 2 . Parts Fused 4 | . . . . . . . . . . . 2 2 . Data Loss (minor) 23 | . . . . . . . . . . 2 5 11 5 Data Loss (major) 11 | . . . . . . . . . . 1 3 6 1 Misfires 2 | . . . . . . . . . . . . 2 . Alerts 5 | . . . . . . . . . . 1 1 3 . Weapon Failures 4 | . . . . . . . . . . . . 2 2 Overload Shots 5 | . . . . . . . . 2 . . . 3 . Effects 1 | . . . . . . . . . . . . 1 . Heat Surge 1 | . . . . . . . . . . . . 1 . Overflow Damage 2291 | . 4 . . 1 192 98 106 50 1 250 991 400 198 Projectiles 394 | . . . . . . . . 24 1 . . 237 132 Explosions 127 | . . . . 1 . . . . . . . 112 14 Melee 1770 | . 4 . . . 192 98 106 26 . 250 991 51 52 Knockbacks 33 | . . . . . . . . . . 4 5 13 11 Impact 9 | . . . . . . . . . . 4 5 . . Kinetic 23 | . . . . . . . . . . . . 13 10 Secondary 1 | . . . . . . . . . . . . . 1 Self-Inflicted Damage 122 | . . . . 10 . 1 . . 2 1 . 108 . Shots 4 | . . . . 1 . 1 . . . . . 2 . Rammed 18 | . 9 6 . . . . . . 2 1 . . . Targets Rammed 19 | . 9 7 . . . . . . 2 1 . . . Kicked . | . . . . . . . . . . . . . . Crushed 1 | . . 1 . . . . . . . . . . . Highest Temperature 402 | . 120 264 . 33 266 291 . 327 402 366 122 311 331 Average Temperature 91 | . 32 98 . 18 94 141 . 100 55 132 47 67 114 Received Heat Transfer 2892 | . 360 96 . 69 162 135 54 267 126 303 45 699 576 Effects 12 | . . . . . 3 1 . 3 1 . . . 4 Shutdowns 1 | . . . . . . . . . . . . . 1 Interference 10 | . . . . . 3 1 . 3 . . . . 3 Short Circuit 1 | . . . . . . . . . 1 . . . . Siege Activations 18 | . . . . . . . . . . . . 13 5 Total Turns 440 | . . . . . . . . . . . . 314 126 Longest Duration 82 | . . . . . . . . . . . . 82 47 Robots Corrupted 17 | . . . . . 5 2 . . . 4 6 . . Combat Hostiles 12 | . . . . . 4 2 . . . 2 4 . . Parts Fried 35 | . . . . . 14 5 . . . 4 12 . . Impact Corruptions 25 | . . . . . . . . . . 11 14 . . Robots Melted 6 | . . . . . . . . 3 2 . . 1 . Combat Hostiles 6 | . . . . . . . . 3 2 . . 1 . Parts Melted 20 | . . 1 . . . . . 11 5 1 . 2 . Heat Transferred 9395 | . 545 407 . . 50 . . 3774 2664 555 . 1400 . Parts Sabotaged 5 | . . . . . . . . . . . . 4 1 Parts Stolen . | . . . . . . . . . . . . . . Parts Stripped . | . . . . . . . . . . . . . . Power Chain Reactions 1 | . . . . . 1 . . . . . . . . Alert | -11 -10 -10 -10 -9 -8 -8 -8 -8 -8 -7 -6 -6 -6 ------- Run | Yrd Mat Min Exi Min Mat Gar Mat Gar Mat Fac Fac Gar Fac Peak Influence 3306 | . 202 151 . 252 347 957 470 1558 1050 499 421 3306 2132 Initial 1735 | . . 2 . . 98 186 466 9 759 382 160 294 1735 Average 676 | . 46 40 . 86 199 664 95 653 889 404 125 1716 1868 Maximum Alert Level 5 | . 1 . . 1 1 3 2 4 3 2 2 5 5 Low Security (%) 35 | 100 98 100 . 81 43 2 95 13 . . 77 . . Level 1 14 | . 1 . . 18 56 13 3 12 . 45 19 2 . Level 2 14 | . . . . . . 30 1 37 . 54 2 17 . Level 3 16 | . . . . . . 53 . 31 100 . . 11 . Level 4 4 | . . . . . . . . 6 . . . 18 . Level 5 13 | . . . . . . . . . . . . 48 100 High Security . | . . . . . . . . . . . . . . Max Security . | . . . . . . . . . . . . . . Squads Dispatched 41 | . 3 . . . 8 . 1 . 4 6 12 . 7 Investigation 17 | . 2 . . . 3 . . . 1 2 6 . 3 Extermination 7 | . . . . . . . . . . 2 5 . . Reinforcement 11 | . 1 . . . 5 . 1 . 1 2 1 . . Assault 6 | . . . . . . . . . 2 . . . 4 Garrison . | . . . . . . . . . . . . . . Intercept . | . . . . . . . . . . . . . . Searches Triggered . | . . . . . . . . . . . . . . Construction Impeded 2 | . . . . . 1 . . . 1 . . . . Haulers Reinforced . | . . . . . . . . . . . . . . Active Scanning Responses . | . . . . . . . . . . . . . . Cargo Convoy Interrupts 1 | . . . . . . . . . . 1 . . . Stealth | -11 -10 -10 -10 -9 -8 -8 -8 -8 -8 -7 -6 -6 -6 --------- Run | Yrd Mat Min Exi Min Mat Gar Mat Gar Mat Fac Fac Gar Fac Distress Signals 12 | . 2 . . . 2 . 1 . 3 1 2 . 1 Communications Jammed . | . . . . . . . . . . . . . . Distress Signals . | . . . . . . . . . . . . . . Times Spotted 271 | . 21 11 . 7 28 23 5 29 30 17 29 42 29 Peak Tracking Total 9 | . 4 9 . 3 6 6 5 7 5 4 5 5 7 Tactical Retreats 24 | . . . . . 7 3 2 5 1 1 3 . 2 Traps | -11 -10 -10 -10 -9 -8 -8 -8 -8 -8 -7 -6 -6 -6 ------- Run | Yrd Mat Min Exi Min Mat Gar Mat Gar Mat Fac Fac Gar Fac Traps Triggered 33 | . 2 . . . 2 4 3 11 . 2 4 3 2 Indirectly . | . . . . . . . . . . . . . . Trap Hack Attempts . | . . . . . . . . . . . . . . Triggered . | . . . . . . . . . . . . . . Disarmed . | . . . . . . . . . . . . . . Reprogrammed . | . . . . . . . . . . . . . . Reused . | . . . . . . . . . . . . . . Traps Extracted . | . . . . . . . . . . . . . . Installed . | . . . . . . . . . . . . . . Triggered 2 | . . . . . . . . . . 2 . . . Machines | -11 -10 -10 -10 -9 -8 -8 -8 -8 -8 -7 -6 -6 -6 ---------- Run | Yrd Mat Min Exi Min Mat Gar Mat Gar Mat Fac Fac Gar Fac Machines Disabled 40 | . . . . . 1 1 . 10 4 2 1 19 2 Max in Single Turn 2 | . . . . . 1 1 . 1 1 1 1 2 2 Garrison Access 1 | . . . . . . . . . . . 1 . . Garrison Relay 13 | . . . . . . . . 8 . . . 5 . Phase Generator 1 | . . . . . . . . . . . . 1 . Machines Repaired . | . . . . . . . . . . . . . . Machines Dismantled . | . . . . . . . . . . . . . . Machines Sabotaged . | . . . . . . . . . . . . . . Overloaded Fab Kills . | . . . . . . . . . . . . . . Hacking | -11 -10 -10 -10 -9 -8 -8 -8 -8 -8 -7 -6 -6 -6 --------- Run | Yrd Mat Min Exi Min Mat Gar Mat Gar Mat Fac Fac Gar Fac Machines Accessed 74 | . 6 1 2 . 7 4 7 4 11 4 20 2 6 Terminals 45 | . 5 1 . . 4 4 5 4 8 1 7 2 4 Fabricators 5 | . . . . . . . . . . . 5 . . Repair Stations 7 | . 1 . . . 1 . . . 2 . 2 . 1 Recycling Units 6 | . . . . . 1 . 1 . 1 2 1 . . Scanalyzers 4 | . . . . . . . . . . 1 2 . 1 Garrison Access 5 | . . . . . 1 . 1 . . . 3 . . Total Hacks 239 | . 31 3 6 . 18 12 30 8 37 13 58 6 17 Successful 124 | . 19 1 6 . 12 4 14 2 19 8 30 1 8 Failed 114 | . 12 2 . . 5 8 16 6 18 5 28 5 9 Catastrophic 12 | . 1 1 . . . . 1 . . 2 3 2 2 Database Lockouts 1 | . . . . . 1 . . . . . . . . Manual 132 | . 19 3 1 . 12 4 21 . 27 8 30 2 5 Terminals 164 | . 24 3 . . 12 12 25 8 31 2 30 6 11 Fabricators 13 | . . . . . . . . . . . 13 . . Repair Stations 20 | . 7 . . . 2 . . . 4 . 4 . 3 Recycling Units 16 | . . . . . 3 . 3 . 2 5 3 . . Scanalyzers 14 | . . . . . . . . . . 6 5 . 3 Garrison Access 6 | . . . . . 1 . 2 . . . 3 . . Terminal Hacks 58 | . 9 1 6 . 5 4 7 2 11 . 10 1 2 Record 5 | . . . 5 . . . . . . . . . . Part Schematic 3 | . . . . . . . . . . . 3 . . Robot Analysis 10 | . 4 . . . 1 . . . 5 . . . . Prototype ID Bank 7 | . 2 1 . . 1 . 2 . 1 . . . . Open Door 1 | . . . . . . 1 . . . . . . . Level Access Points 1 | . . . . . . . . . 1 . . . . Branch Access Points 2 | . . . . . . . 1 . . . 1 . . Emergency Access Points 2 | . . . . . . 1 . 1 . . . . . Terminal Index 4 | . 1 . . . 1 . . . 1 . . . 1 Garrison Index 1 | . . . . . . . . . . . 1 . . Alert Level 1 | . . . . . . . 1 . . . . . . Unreport Threat 10 | . 1 . . . 2 . 3 . 2 . 2 . . Locate Traps 4 | . 1 . . . . . . . 1 . 1 . 1 Extermination Status 1 | . . . . . . . . . . . 1 . . Zone Layout 1 | . . . . . . . . . . . 1 . . Patrol Navigation 3 | . . . . . . 1 . 1 . . . 1 . Security Stations 1 | . . . . . . 1 . . . . . . . Derelict Proto ID Bank 1 | . . . 1 . . . . . . . . . . Fabricator Hacks 7 | . . . . . . . . . . . 7 . . Load Schematic 4 | . . . . . . . . . . . 4 . . Build 3 | . . . . . . . . . . . 3 . . Repair Station Hacks 17 | . 5 . . . 2 . . . 4 . 4 . 2 Scan Component 9 | . 3 . . . 1 . . . 2 . 2 . 1 Repair 8 | . 2 . . . 1 . . . 2 . 2 . 1 Recycling Unit Hacks 1 | . . . . . . . 1 . . . . . . Retrieve Components 1 | . . . . . . . 1 . . . . . . Scanalyzer 6 | . . . . . . . . . . 5 . . 1 Insert Component 3 | . . . . . . . . . . 2 . . 1 Analyze 3 | . . . . . . . . . . 3 . . . Garrison Access Hacks 4 | . . . . . 1 . 1 . . . 2 . . Unlock Access 3 | . . . . . 1 . 1 . . . 1 . . Seal Access 1 | . . . . . . . . . . . 1 . . Unauthorized Hacks 31 | . 5 . . . 4 . 5 . 4 3 7 . 3 Terminals 21 | . 5 . . . 2 . 3 . 4 . 4 . 3 Assimilate 2 | . . . . . . . 1 . . . 1 . . Botnet 18 | . 4 . . . 2 . 2 . 4 . 3 . 3 Operators 1 | . 1 . . . . . . . . . . . . Fabricators . | . . . . . . . . . . . . . . Repair Stations . | . . . . . . . . . . . . . . Recycling Units 7 | . . . . . 2 . 2 . . 2 1 . . Reject 3 | . . . . . 1 . 1 . . 1 . . . Mask 4 | . . . . . 1 . 1 . . 1 1 . . Scanalyzers 3 | . . . . . . . . . . 1 2 . . Extract 3 | . . . . . . . . . . 1 2 . . Garrison Access . | . . . . . . . . . . . . . . Data Cores Recovered . | . . . . . . . . . . . . . . Used . | . . . . . . . . . . . . . . Hacking Detections 61 | . 6 1 . . 5 4 6 3 11 3 15 2 5 Full Trace Events 21 | . 4 1 . . 1 1 1 . 4 1 4 1 3 Feedback Events 3 | . . . . . . . 1 . . 1 . . 1 Corruption 2 | . . . . . . . . . . 1 . . 1 Hackware Fried 1 | . . . . . . . 1 . . . . . . Feedback Blocked . | . . . . . . . . . . . . . . Robot Schematics Acquired . | . . . . . . . . . . . . . . Robots Built . | . . . . . . . . . . . . . . Authchips . | . . . . . . . . . . . . . . Time . | . . . . . . . . . . . . . . Total Robot Build Rating . | . . . . . . . . . . . . . . Part Schematics Acquired 18 | . . . . . . . . . . 3 15 . . Parts Built 6 | . . . . . . . . . . . 6 . . Authchips . | . . . . . . . . . . . . . . Time 189 | . . . . . . . . . . . 189 . . Total Part Build Rating 30 | . . . . . . . . . . . 30 . . Parts Repaired 8 | . 2 . . . 1 . . . 2 . 2 . 1 Time 356 | . 62 . . . 44 . . . 106 . 94 . 50 Parts Recycled . | . . . . . . . . . . . . . . Recycled Matter . | . . . . . . . . . . . . . . Retrieved Matter . | . . . . . . . . . . . . . . Retrieved Components 3 | . . . . . . . 3 . . . . . . Parts Scanalyzed 3 | . . . . . . . . . . 2 . . 1 Part Schematics Acquired 2 | . . . . . . . . . . 2 . . . Parts Damaged 2 | . . . . . . . . . . 1 . . 1 Bothacking | -11 -10 -10 -10 -9 -8 -8 -8 -8 -8 -7 -6 -6 -6 ------------ Run | Yrd Mat Min Exi Min Mat Gar Mat Gar Mat Fac Fac Gar Fac Used RIF Installer . | . . . . . . . . . . . . . . Robots Hacked . | . . . . . . . . . . . . . . Non-combat . | . . . . . . . . . . . . . . Combat . | . . . . . . . . . . . . . . Robot Hacks Applied . | . . . . . . . . . . . . . . Relay Couplers Released 58 | . . . . . . . . 36 . . . 22 . Machine Destruction 58 | . . . . . . . . 36 . . . 22 . Fabnet Peak Effective % . | . . . . . . . . . . . . . . Robots Rewired 6 | . . . . . . 2 . . . . . 4 . Allies Hacked . | . . . . . . . . . . . . . . Hacks Repelled . | . . . . . . . . . . . . . . Allies | -11 -10 -10 -10 -9 -8 -8 -8 -8 -8 -7 -6 -6 -6 -------- Run | Yrd Mat Min Exi Min Mat Gar Mat Gar Mat Fac Fac Gar Fac Total Allies 12 | . . . . 3 . 2 . 2 . . 1 4 . Largest Group 4 | . . . . 3 3 2 . 2 2 . 1 4 . Highest-Rated Group 172 | . . . . 40 39 50 . 70 70 . 26 172 . Highest-Rated Ally 43 | . . . . 16 16 25 . 39 39 . 26 43 . Total Orders 8 | . . . . . 3 . . . . . 1 4 . STAY 4 | . . . . . 2 . . . . . . 2 . ROAM 1 | . . . . . . . . . . . 1 . . FOLLOW 3 | . . . . . 1 . . . . . . 2 . Ally Attacks 140 | . . . . 4 21 3 . 13 49 . . 50 . Total Damage 2855 | . . . . 35 213 68 . 217 651 . . 1671 . Kills 22 | . . . . . 2 1 . 2 11 . . 6 . Allies Corrupted . | . . . . . . . . . . . . . . Allies Melted . | . . . . . . . . . . . . . . Intel | -11 -10 -10 -10 -9 -8 -8 -8 -8 -8 -7 -6 -6 -6 ------- Run | Yrd Mat Min Exi Min Mat Gar Mat Gar Mat Fac Fac Gar Fac Robot Analysis Total 10 | . 4 . . . 1 . . . 5 . . . . Derelict Logs Recovered 3 | . . 2 . 1 . . . . . . . . . Drone Launches . | . . . . . . . . . . . . . . Drone Recoveries . | . . . . . . . . . . . . . . Exploration | -11 -10 -10 -10 -9 -8 -8 -8 -8 -8 -7 -6 -6 -6 ------------- Run | Yrd Mat Min Exi Min Mat Gar Mat Gar Mat Fac Fac Gar Fac Turns Passed 18687 | 73 1697 513 354 360 1558 1326 626 1921 1364 1384 3152 3541 818 Spaces Moved 12416 | 43 789 269 217 212 1476 1074 493 1081 772 1280 2482 1858 370 Core 7 | 4 . . . . . . . . . 3 . . . Treads 2894 | 39 789 269 217 212 4 . . 46 2 . 449 818 49 Legs 266 | . . . . . . 266 . . . . . . . Wheels 3601 | . . . . . . . . 1035 770 185 282 1009 320 Hover 5648 | . . . . . 1472 808 493 . . 1092 1751 31 1 Flight . | . . . . . . . . . . . . . . Fastest Speed 40 | 50 160 160 160 160 48 48 50 105 90 48 40 48 135 Average Speed 99 | 149 160 160 160 160 49 68 77 110 107 64 81 142 146 Slowest Speed 300 | 160 160 160 160 160 160 120 220 240 225 220 300 165 165 Overloaded Moves . | . . . . . . . . . . . . . . Propulsion Burnouts . | . . . . . . . . . . . . . . Robots Hopped . | . . . . . . . . . . . . . . Cave-ins Triggered . | . . . . . . . . . . . . . . Exploration Rate (%) 60 | 4 94 69 59 57 77 92 43 91 63 27 56 96 13 Regions Visited 13 Branch Regions 3 Pre-discovered Areas 3 | . . 1 1 1 . . . . . . . . . Known Exits Taken 4 | . . . . . 1 . 1 . 1 . 1 . . Unknown Exits Taken 6 | 1 1 1 1 1 . . . . . 1 . . . Scrap Searched 1 | . . 1 . . . . . . . . . . . Spaces Dug 109 | . 1 . . . 14 23 10 2 4 17 27 2 9 Terrain Destroyed 638 | . 1 16 . 53 33 32 10 2 4 17 45 356 69 Melee 104 | . 1 . . . 14 23 10 2 4 17 25 . 8 Projectile 40 | . . . . . . . . . . . 2 22 16 AOE 494 | . . 16 . 53 19 9 . . . . 18 334 45 Terrain Rammed . | . . . . . . . . . . . . . . Walls Destroyed . | . . . . . . . . . . . . . . Machines Disabled . | . . . . . . . . . . . . . . Actions | -11 -10 -10 -10 -9 -8 -8 -8 -8 -8 -7 -6 -6 -6 --------- Run | Yrd Mat Min Exi Min Mat Gar Mat Gar Mat Fac Fac Gar Fac Total 17199 | 49 1044 313 224 224 2174 1558 719 1578 1171 1716 3405 2463 561 Wait 3095 | . 116 12 . 2 545 334 182 254 297 303 696 265 89 Move 12399 | 42 788 268 216 211 1475 1072 492 1080 771 1279 2481 1854 370 Hop . | . . . . . . . . . . . . . . Pick Up 142 | 1 14 2 4 1 18 15 9 5 1 19 15 28 10 Fast Attach 135 | 6 6 . . . 10 6 9 12 6 15 32 31 2 Attach 54 | . . 1 1 . 4 5 . 2 . 12 11 8 10 Detach 20 | . . . . . 1 2 . 2 . 7 5 3 . Swap 120 | . 8 3 1 . 22 5 1 14 16 2 24 20 4 Drop 168 | . 8 . 2 1 25 7 8 14 9 12 23 44 15 Fire 604 | . 89 20 . 9 53 25 . 127 65 20 4 143 49 Melee 322 | . 6 . . . 21 58 18 19 4 46 106 32 12 Ram 2 | . . . . . . . . . 1 1 . . . Kick . | . . . . . . . . . . . . . . Crush 17 | . 9 7 . . . . . . 1 . . . . Escape Stasis 80 | . . . . . . 16 . 48 . . 8 8 . Rewire 41 | . . . . . . 13 . 1 . . . 27 . Trap . | . . . . . . . . . . . . . . Miscellaneous . | . . . . . . . . . . . . . . Route ------- -11/Scrapyard -10/Materials (discovered 5 exits: [*Mat x3] / *Min x2) -10/Mines (discovered 2 exits: [*Mat] / *Exi) -10/Exiles -9/Mines -8/Materials (discovered 3 exits: *Fac x2 / Gar) -8/Garrison (discovered 3 exits: *Mat x3) -8/Materials -8/Garrison (discovered 3 exits: *Mat x3) -8/Materials (discovered 3 exits: *Fac x3) -7/Factory (discovered 2 exits: *Fac / [*Low]) -6/Factory (discovered 5 exits: [*Fac x2] / *Low x2 / Gar) -6/Garrison (discovered 3 exits: *Fac x3) -6/Factory History --------- Turn | Location | Event 16 | -11/Scrapyard | Discovered new exit (range 16) 74 | -11/Scrapyard | Entered Materials 257 | -10/Materials | Discovered new exit (range 9) 320 | -10/Materials | Build established: Mutant 792 | -10/Materials | Discovered new exit (range 18) 881 | -10/Materials | Discovered new exit (range 9) 1063 | -10/Materials | Discovered new exit (range 4) 1234 | -10/Materials | Discovered new exit (range 15) 1585 | -10/Materials | Repaired Lgt. Treads 1623 | -10/Materials | Repaired Broken Lgt. Treads 1771 | -10/Materials | Entered Mines 1778 | -10/Mines | Met a Derelict bent on vengeance 2002 | -10/Mines | Assembled infested the area 2024 | -10/Mines | Learned location of Storage (-7) 2156 | -10/Mines | Learned 2 Materials zone layouts 2156 | -10/Mines | Discovered new exit (range 7) 2278 | -10/Mines | Deemed a non-threat by the Exiles lab entrance 2278 | -10/Mines | Discovered new exit (range 5) 2284 | -10/Mines | Entered Exiles 2330 | -10/Exiles | Met 8R-AWN 2358 | -10/Exiles | Met EX-HEX 2404 | -10/Exiles | Met EX-BIN 2423 | -10/Exiles | Aligned with FarCom system 2425 | -10/Exiles | Given EX-Vault access code 2468 | -10/Exiles | Opened EX-Vault 2480 | -10/Exiles | Found Longsword +1 2513 | -10/Exiles | Warned to stay clear of 0b10 Research branches 2566 | -10/Exiles | Met EX-DEC 2572 | -10/Exiles | Learned location of Zion (-6) 2620 | -10/Exiles | Discovered new exit (range 12) 2638 | -10/Exiles | Left Exiles lab with Longsword +1 2638 | -10/Exiles | Entered Mines 2674 | -9/Mines | Found a damaged Exp. Sensor Array with a note attached 2677 | -9/Mines | Found Prototype Device 2727 | -9/Mines | Core integrity fell below 50% 2757 | -9/Mines | Learned Materials stockpile data 2858 | -9/Mines | Assisted by bots powering up and referring to "LRC-V3" 2980 | -9/Mines | Discovered new exit (range 9) 2987 | -9/Mines | Met a Derelict testing a Signal Generator 2998 | -9/Mines | Entered Materials 2998 | -8/Materials | Accompanied by 3 allies 2998 | -8/Materials | Evolved 4 slots: Propulsion x2, Utility x1, Weapon x1 3304 | -8/Materials | Build established: Skirmisher 3792 | -8/Materials | Repaired Gravmag System 3849 | -8/Materials | Discovered new exit (range 5) 4131 | -8/Materials | Discovered new exit (range 9) 4139 | -8/Materials | Identified exit to Garrison 4173 | -8/Materials | Central database locked down 4556 | -8/Materials | Entered Garrison 4572 | -8/Garrison | Triggered checkpoint 4720 | -8/Garrison | Learned Materials security intel 4796 | -8/Garrison | Triggered checkpoint 4846 | -8/Garrison | Destroyed 7 combat bots 4900 | -8/Garrison | Discovered new exit (range 15) 4952 | -8/Garrison | Triggered checkpoint 5104 | -8/Garrison | Build established: Mutant 5135 | -8/Garrison | Lost 3 parts (1p1n1w) 5152 | -8/Garrison | Triggered checkpoint 5228 | -8/Garrison | Triggered checkpoint 5240 | -8/Garrison | Discovered new exit (range 10) 5413 | -8/Garrison | Build established: Scavenger-Mutant 5461 | -8/Garrison | Discovered new exit (range 10) 5466 | -8/Garrison | Triggered checkpoint 5767 | -8/Garrison | Attempted to access garrison exit controls, blocked by remote lockdown 5882 | -8/Garrison | Entered Materials 5950 | -8/Materials | Identified exit to Garrison 6046 | -8/Materials | Hacking Suite fried by hacking feedback 6292 | -8/Materials | Build established: Mutant 6508 | -8/Materials | Entered Garrison 6598 | -8/Garrison | Triggered checkpoint 6730 | -8/Garrison | Garrison Relay disabled 6822 | -8/Garrison | Triggered checkpoint 6911 | -8/Garrison | Build established: Skirmisher 6986 | -8/Garrison | Triggered checkpoint 7269 | -8/Garrison | Garrison Relay disabled 7296 | -8/Garrison | Discovered new exit (range 11) 7424 | -8/Garrison | Triggered checkpoint 7493 | -8/Garrison | Spotted B-75 Beast 7511 | -8/Garrison | Build established: Scavenger-Skirmisher 7740 | -8/Garrison | Discovered new exit (range 11) 8005 | -8/Garrison | Triggered checkpoint 8053 | -8/Garrison | Destroyed 7 combat bots 8165 | -8/Garrison | Garrison Relay disabled 8222 | -8/Garrison | Triggered checkpoint 8264 | -8/Garrison | Rescued a captive Derelict 8271 | -8/Garrison | Rescued a captive Derelict 8318 | -8/Garrison | Triggered checkpoint 8342 | -8/Garrison | Garrison Relay disabled 8367 | -8/Garrison | Garrison Relay disabled 8388 | -8/Garrison | Garrison Relay disabled 8390 | -8/Garrison | Garrison Relay disabled 8424 | -8/Garrison | Discovered new exit (range 4) 8429 | -8/Garrison | Entered Materials 8429 | -8/Materials | Accompanied by 2 allies 8829 | -8/Materials | First assault squad dispatched 8866 | -8/Materials | Identified exit to Factory 9430 | -8/Materials | Repaired Cmb. Airjet 9512 | -8/Materials | Repaired Adv. Cooling System 9742 | -8/Materials | Build established: Skirmisher 9793 | -8/Materials | Entered Factory 9793 | -7/Factory | Evolved 2 slots: Utility x2 9944 | -7/Factory | Discovered new exit (range 8) 10022 | -7/Factory | Released all parts (8) 10328 | -7/Factory | Build established: Hacker-Mutant 10578 | -7/Factory | Cargo convoy interrupted 11108 | -7/Factory | Lost 6 parts (1p2n2u1w) 11123 | -7/Factory | Core integrity fell below 50% 11166 | -7/Factory | Discovered new exit (range 8) 11177 | -7/Factory | Entered another Factory area 11177 | -6/Factory | Evolved 2 slots: Propulsion x1, Utility x1 11204 | -6/Factory | Lost 3 parts (2n1u) 11375 | -6/Factory | Build established: Mutant 11813 | -6/Factory | Identified exit to Lower Caves 11936 | -6/Factory | Fabricated Imp. Gravmag System? 12112 | -6/Factory | Build established: Hacker-Mutant 12359 | -6/Factory | Discovered new exit (range 9) 12551 | -6/Factory | Repaired Greatsword 12884 | -6/Factory | Build established: Hacker-Gladiator 12886 | -6/Factory | Lost 4 parts (3n1w) 13087 | -6/Factory | Repaired Imp. Gravmag System? 13119 | -6/Factory | Discovered new exit (range 14) 13356 | -6/Factory | Fabricated Imp. Gravmag System? 13873 | -6/Factory | Fabricated Imp. Gravmag System (x2) 14313 | -6/Factory | Identified exit to Garrison 14329 | -6/Factory | Entered Garrison 14613 | -6/Garrison | Triggered checkpoint 14662 | -6/Garrison | Garrison Relay disabled 14860 | -6/Garrison | Build established: Hacker-Skirmisher 14963 | -6/Garrison | Triggered checkpoint 15081 | -6/Garrison | Triggered checkpoint 15098 | -6/Garrison | Spotted B-75 Beast 15121 | -6/Garrison | Destroyed B-75 Beast 15194 | -6/Garrison | Triggered checkpoint 15364 | -6/Garrison | Discovered new exit (range 10) 15419 | -6/Garrison | Triggered checkpoint 15466 | -6/Garrison | Triggered checkpoint 15587 | -6/Garrison | Triggered checkpoint 15610 | -6/Garrison | Core integrity fell below 50% 15635 | -6/Garrison | Garrison Relay disabled 15831 | -6/Garrison | Garrison Relay disabled 16036 | -6/Garrison | Build established: Scavenger-Skirmisher 16067 | -6/Garrison | Heavy support dispatched to Factory 16137 | -6/Garrison | Phase Generator disabled 16383 | -6/Garrison | Triggered checkpoint 16421 | -6/Garrison | Garrison Relay disabled 16474 | -6/Garrison | Found Unknown Hackware 16474 | -6/Garrison | Identified Relay Coupler [Proto] 16754 | -6/Garrison | Discovered new exit (range 8) 16818 | -6/Garrison | H-XX Assembler disabled 16915 | -6/Garrison | Build established: Scavenger-Mutant 17014 | -6/Garrison | Discovered new exit (range 10) 17072 | -6/Garrison | Triggered checkpoint 17105 | -6/Garrison | Garrison Relay disabled 17143 | -6/Garrison | Spotted Striker 17143 | -6/Garrison | Spotted Striker 17156 | -6/Garrison | Destroyed Striker 17187 | -6/Garrison | Destroyed Striker 17205 | -6/Garrison | Lost 4 allies 17639 | -6/Garrison | Attempted to access garrison exit controls, blocked by remote lockdown 17717 | -6/Garrison | Build established: Gladiator 17747 | -6/Garrison | Attempted to access garrison exit controls, blocked by remote lockdown 17870 | -6/Garrison | Entered Factory 18126 | -6/Factory | Repaired Imp. Gravmag System 18220 | -6/Factory | First assault squad dispatched 18418 | -6/Factory | Destroyed 11 combat bots 18439 | -6/Factory | Core integrity fell below 20% 18505 | -6/Factory | Build established: Mutant 18688 | -6/Factory | Destroyed by H-66 Slayer with Gauss Rifle Last Messages --------------- 18666_ B-48 Gladiator destroyed. 18668_ Penetrated by Slug. 18670_ Dropped Arm. Wheel. 18670_ Slug penetrates L-41 Fighter. 18670_ L-41 Fighter destroyed. 18671_ Slug penetrates Wall. 18671_ Penetrated by Slug. 18672_ Hvy. Mass Driver destroyed. 18675_ Dropped Arm. Heavy Treads. 18679_ L-41 Fighter Carbon-fiber Leg severed. 18679_ Penetrated by Slug. 18681_ L-41 Fighter Axe severed. 18681_ Great Axe follow-up attack on L-41 Fighter. 18684_ Ended siege mode. 18684_ Dropped Imp. Heavy Treads. 18685_ Penetrated by Slug. 18686_ Critical hit (Destroy). 18686_ Gravmag Array destroyed. 18687_ Acquired 43 matter. Map ----- +----------------------------------------------------+ | | | | | | | | | | | | | | | | | | | | | | | | | ?####????????????????????????????????????????????? | | ? ????????????????????????????????????????????? | | ??#????????????????????????????????????????? | | "" """" #????????????????????????????????????????? | | "" """" #????????????????????????????????????????? | | "" """" #????????????????????????????????????????? | | "" """" #????????????????????????????????????????? | | #????????????????????????????????????????? | | ########?????????????????????????????????? | | ! ## ##+###############????????????????? | | +##"###### ?????????????????? | | = C ?????????????????? | | ###### % l ?????????????????? | | #????# ##"####+##@#####??????????????????? | | #????### ##### ^%h=%!=^ #??????????????????? | | #??????# #???#"" g=//%= #??????????????????? | | #??????# #???#"" h%=!! #??????????????????? | | #??????#+#???#"" /= #??????????????????? | | #????????????#T ^ ^ ^ #??????????????????? | | #????????????#"" #??????????????????? | | #????????????#"" """ !#??????????????????? | | #????????????#"" """ #??????????????????? | | #????????????# """ #??????????????????? | | #????????????# "" #????????w?????????? | | +????????????# "" #??????????????????? | | #????????????# #??????????????????? | | #????????????#########;####??????????????????? | | #?????????????????????"??????????????????????? | | #?????????????????????"??????????????????????? | | #????????????????????????????????????????????? | | ? ?????????????????????????????????????????????? | | ?????????????????????????????????????????????????? | | ?????????????????????????????????????????????????? | | ?????????????????????????????????????????????????? | | ?????????????????????????????????????????????????? | | ?????????????????????????????????????????????????? | | ?????????????????????????????????????????????????? | | ?????????????????????????????????????????????????? | +----------------------------------------------------+ Best States ------------- Heat Dissipation 65 Coolant Potential 65 Energy Generation 25 Energy Capacity 300 Matter Stores 300 Matter Capacity 300 Sight Range 18 Terrain Scan Density 10 Jamming Range 14 Armor Coverage 1200 Resistance: TH 20 Power Shielding 66 Melee Speed Boost 20 Evasion (%) 57 Targeting Accuracy 6 Melee Accuracy 8 Core Analysis 6 Recoil Reduction 4 Offensive Hacking 12 Defensive Hacking 14 Item Schematics ----------------- Adv. Cooling System | -7/Factory | Scanalyzed Variable Charge Gun | -7/Factory | Scanalyzed Imp. Terrain Scanner | -7/Factory | Extracted Imp. Gravmag System | -6/Factory | Hacked Power Sword | -6/Factory | Hacked Imp. Hacking Suite | -6/Factory | Hacked Adv. Weight Redist. System | -6/Factory | Extracted Adv. Signal Interpreter | -6/Factory | Extracted Enh. Optical Array | -6/Factory | Extracted Imp. Signal Interpreter | -6/Factory | Extracted Lgt. Armored Exoskeleton | -6/Factory | Extracted Imp. Heavy Armor Plating | -6/Factory | Extracted Gravmag Array | -6/Factory | Extracted Matter Compressor | -6/Factory | Extracted Recalibrator | -6/Factory | Extracted Maul | -6/Factory | Extracted EM Disruption Field | -6/Factory | Extracted Hyp. Gauss Rifle | -6/Factory | Extracted Robot Schematics ------------------ None Fabricated ------------ Imp. Gravmag System | x2 | -6/Factory Imp. Gravmag System | x2 | -6/Factory Imp. Gravmag System | x2 | -6/Factory Alien Tech Used ----------------- None Achievements -------------- None Challenges ------------ None Game ------ Seed HelicalMakeshiftStreamer Manual? 0 Play Time 03:13:28 Cumulative 127.3 hours Start 2024.10.17 @ 23:15:01 End 2024.10.18 @ 05:08:45 Sessions 5 Manual Loads 0 Difficulty Rogue Special Mode None Game No. 80 Rogue 44 Adventurer 36 Explorer 0 Win Type - Total 2 Types 2/0/0/0/0/0/0/0/0 Lore% 53 Gallery% 59 Achievement% 52 Wizard Run 0 Options --------- Layout 1 ASCII 0 Keyboard 0 Movement Numpad Keybinds 0 Fullscreen 1 Font 48/Smallcaps Map View 50x35 Zoom Use 0% Tactical HUD 1 Map Filters NONE Filters NONE Steam 1 RUN: 5318d9ca-4389-47e6-ab46-ea9e3448684d